fUSD/lending_fUSD_20250923
["ID","MTS","AMOUNT","RATE_DAILY","PERIOD"]
[387133030,1758588686383,-171.31070486,0.00020873,2]
[387133031,1758588686393,-500.0,0.00020873,2]
[387133032,1758588686403,-500.0,0.00020873,2]
[387133033,1758588686413,-165.43467295,0.00020873,2]
[387133034,1758588686423,-151.0,0.00020884,2]
[387133035,1758588686432,-298.39,0.00020927,2]
[387133036,1758588686442,-1000.0,0.00020986,2]
[387133037,1758588686452,-20824.99606163,0.00020992,2]
[387133038,1758588686462,-500.0,0.00020999,2]
[387133039,1758588686471,-765.8,0.00020999,2]
[387133040,1758588686482,-500.0,0.00020999,2]
[387133041,1758588686491,-500.0,0.00020999,2]
[387133042,1758588686501,-628.46,0.00020999,2]
[387133043,1758588686511,-283.0,0.0002102,2]
[387133044,1758588686520,-1500.0,0.00021068,2]
[387133045,1758588686530,-500.0,0.00021073,2]
[387133046,1758588686540,-500.0,0.00021073,2]
[387133047,1758588686549,-500.0,0.00021073,2]
[387133048,1758588686559,-500.0,0.00021073,2]
[387133049,1758588686569,-500.0,0.00021073,2]
[387133050,1758588686579,-500.0,0.00021073,2]
[387133051,1758588686589,-500.0,0.00021073,2]
[387133052,1758588686598,-302.02942247,0.00021073,2]
[387133053,1758588686608,-323.68251217,0.00021073,2]
[387133054,1758588686618,-500.0,0.00021073,2]
[387133055,1758588686628,-500.0,0.00021073,2]
[387133056,1758588686638,-500.0,0.00021073,2]
[387133057,1758588686648,-500.0,0.00021073,2]
[387133058,1758588686658,-500.0,0.00021073,2]
[387133059,1758588686668,-501.70849173,0.00021073,2]
[387133060,1758588686678,-500.0,0.00021073,2]
[387133061,1758588686687,-500.0,0.00021073,2]
[387133062,1758588686697,-356.5,0.00021073,2]
[387133063,1758588686707,-401.0903198,0.00021088,2]
[387133064,1758588686716,-400.0,0.00021088,2]
[387133065,1758588686726,-400.0,0.00021088,2]
[387133066,1758588686736,-400.0,0.00021088,2]
[387133067,1758588686745,-400.0,0.00021088,2]
[387133068,1758588686756,-400.0,0.00021088,2]
[387133069,1758588686765,-400.0,0.00021088,2]
[387133070,1758588686775,-400.0,0.00021088,2]
[387133071,1758588686784,-400.0,0.00021088,2]
[387133072,1758588686794,-400.0,0.00021088,2]
[387133073,1758588686804,-400.0,0.00021088,2]
[387133074,1758588686813,-400.0,0.00021088,2]
[387133075,1758588686823,-488.3,0.00021088,2]
[387133076,1758588686833,-400.0,0.00021088,2]
[387133077,1758588686843,-400.0,0.00021088,2]
[387133078,1758588686853,-400.0,0.00021088,2]
[387133079,1758588686863,-400.0,0.00021088,2]
[387133080,1758588686873,-400.0,0.00021088,2]
[387133081,1758588686883,-400.0,0.00021088,2]
[387133082,1758588686892,-400.0,0.00021088,2]
[387133083,1758588686901,-400.0,0.00021088,2]
[387133084,1758588686910,-400.0,0.00021088,2]
[387133085,1758588686920,-500.0,0.00021088,2]
[387133086,1758588686929,-500.0,0.00021088,2]
[387133087,1758588686938,-765.8,0.00021088,2]
[387133088,1758588686948,-765.8,0.00021088,2]
[387133089,1758588686958,-500.0,0.00021088,2]
[387133090,1758588686969,-196.68,0.00021088,2]
[387133091,1758588686978,-628.46,0.00021088,2]
[387133092,1758588687071,-628.46,0.00021088,2]
[387133093,1758588687081,-400.0,0.00021089,2]
[387133094,1758588687096,-400.0,0.00021089,2]
[387133095,1758588687105,-400.0,0.00021089,2]
[387133096,1758588687114,-400.0,0.00021089,2]
[387133097,1758588687123,-400.0,0.00021089,2]
[387133098,1758588687134,-405.33247945,0.00021089,2]
[387133099,1758588687142,-401.72513313,0.00021089,2]
[387133100,1758588687151,-400.0,0.00021089,2]
[387133101,1758588687160,-400.0,0.00021089,2]
[387133102,1758588687171,-400.0,0.00021089,2]
[387133103,1758588687180,-400.0,0.00021089,2]
[387133104,1758588687189,-400.0,0.00021089,2]
[387133105,1758588687198,-400.0,0.00021089,2]
[387133106,1758588687207,-400.0,0.00021089,2]
[387133107,1758588687215,-517.8313257,0.00021089,2]
[387133108,1758588687224,-412.05843363,0.00021089,2]
[387133109,1758588687233,-400.0,0.00021089,2]
[387133110,1758588687242,-400.0,0.00021089,2]
[387133111,1758588687251,-400.0,0.00021089,2]
[387133112,1758588687260,-400.0,0.00021089,2]
[387133113,1758588687269,-400.0,0.00021089,2]
[387133114,1758588687278,-400.0,0.00021089,2]
[387133115,1758588687287,-400.0,0.00021089,2]
[387133116,1758588687296,-400.0,0.00021089,2]
[387133117,1758588687305,-352.47080746,0.00021089,2]
[387133118,1758588687313,-400.0,0.00021089,2]
[387133119,1758588687323,-418.82371712,0.00021089,2]
[387133120,1758588687331,-400.0,0.00021089,2]
[387133121,1758588687341,-400.0,0.00021089,2]
[387133122,1758588687350,-400.0,0.00021089,2]
[387133123,1758588687360,-400.0,0.00021089,2]
[387133124,1758588687369,-400.0,0.00021089,2]
[387133125,1758588687378,-400.0,0.00021089,2]
[387133126,1758588687387,-400.0,0.00021089,2]
[387133127,1758588687396,-400.0,0.00021089,2]
[387133128,1758588687406,-400.0,0.00021089,2]
[387133129,1758588687415,-400.0,0.00021089,2]
[387133130,1758588687424,-400.0,0.00021089,2]
[387133131,1758588687434,-400.0,0.00021089,2]
[387133132,1758588687443,-321.70768217,0.00021089,2]
[387133133,1758588687453,-765.8,0.00021089,2]
[387133134,1758588687462,-400.0,0.00021089,2]
[387133135,1758588687473,-553.8,0.00021089,2]
[387133136,1758588687482,-400.0,0.00021089,2]
[387133137,1758588687492,-400.0,0.00021089,2]
[387133138,1758588687501,-400.0,0.00021089,2]
[387133139,1758588687511,-400.0,0.00021089,2]
[387133140,1758588687521,-400.0,0.00021089,2]
[387133141,1758588687530,-739.8,0.00021089,2]
[387133142,1758588687540,-631.13,0.00021089,2]
[387133143,1758588687551,-400.0,0.00021089,2]
[387133144,1758588687561,-400.0,0.00021089,2]
[387133145,1758588687570,-400.0,0.00021089,2]
[387133146,1758588687580,-400.0,0.00021089,2]
[387133147,1758588687589,-400.0,0.00021089,2]
[387133148,1758588687599,-400.0,0.00021089,2]
[387133149,1758588687608,-400.0,0.00021089,2]
[387133150,1758588687617,-400.0,0.00021089,2]
[387133151,1758588687627,-500.0,0.00021089,2]
[387133152,1758588687638,-400.0,0.00021089,2]
[387133153,1758588687648,-455.09,0.00021089,2]
[387133154,1758588687658,-628.46,0.00021089,2]
[387133155,1758588687668,-500.0,0.0002109,2]
[387133156,1758588687678,-500.0,0.0002109,2]
[387133157,1758588687688,-400.0,0.00021092,2]
[387133158,1758588687698,-400.0,0.00021092,2]
[387133159,1758588687708,-414446.10681562,0.00021093,2]
[387133160,1758588687719,-400.0,0.00021093,2]
[387133161,1758588687729,-400.0,0.00021093,2]
[387133162,1758588687739,-400.0,0.00021093,2]
[387133163,1758588687748,-400.0,0.00021093,2]
[387133164,1758588687757,-433.86,0.00021093,2]
[387133165,1758588687766,-400.0,0.00021093,2]
[387133166,1758588687775,-400.0,0.00021093,2]
[387133167,1758588687784,-422.24,0.00021093,2]
[387133168,1758588687793,-400.0,0.00021093,2]
[387133169,1758588687803,-400.0,0.00021093,2]
[387133170,1758588687812,-400.0,0.00021093,2]
[387133171,1758588687822,-400.0,0.00021093,2]
[387133172,1758588687830,-400.0,0.00021093,2]
[387133173,1758588687839,-400.0,0.00021093,2]
[387133174,1758588687848,-400.0,0.00021093,2]
[387133175,1758588687857,-400.0,0.00021093,2]
[387133176,1758588687867,-400.0,0.00021093,2]
[387133177,1758588687876,-400.0,0.00021093,2]
[387133178,1758588687886,-400.0,0.00021093,2]
[387133179,1758588687896,-400.0,0.00021093,2]
[387133180,1758588687905,-400.0,0.00021093,2]
[387133181,1758588687914,-171.87,0.00021093,2]
[387133182,1758588687923,-400.0,0.00021093,2]
[387133183,1758588687931,-400.0,0.00021093,2]
[387133184,1758588687940,-400.0,0.00021093,2]
[387133185,1758588687949,-400.0,0.00021093,2]
[387133186,1758588687958,-400.0,0.00021093,2]
[387133187,1758588687967,-400.0,0.00021093,2]
[387133188,1758588687976,-400.0,0.00021093,2]
[387133189,1758588687985,-400.0,0.00021093,2]
[387133190,1758588687995,-400.0,0.00021093,2]
[387133191,1758588688003,-400.0,0.00021093,2]
[387133192,1758588688013,-400.0,0.00021093,2]
[387133193,1758588688022,-400.0,0.00021093,2]
[387133194,1758588688031,-400.0,0.00021093,2]
[387133195,1758588688040,-400.0,0.00021093,2]
[387133196,1758588688049,-400.0,0.00021093,2]
[387133197,1758588688058,-400.0,0.00021093,2]
[387133198,1758588688067,-400.0,0.00021093,2]
[387133199,1758588688076,-400.0,0.00021093,2]
[387133200,1758588688092,-400.0,0.00021093,2]
[387133201,1758588688104,-400.0,0.00021093,2]
[387133202,1758588688115,-239.82,0.00021093,2]
[387133203,1758588688124,-400.0,0.00021093,2]
[387133204,1758588688135,-400.0,0.00021093,2]
[387133205,1758588688144,-417.58,0.00021093,2]
[387133206,1758588688153,-400.0,0.00021093,2]
[387133207,1758588688163,-400.0,0.00021093,2]
[387133208,1758588688172,-400.0,0.00021093,2]
[387133209,1758588688181,-423.16,0.00021093,2]
[387133210,1758588688190,-400.0,0.00021093,2]
[387133211,1758588688199,-400.0,0.00021093,2]
[387133212,1758588688209,-400.0,0.00021093,2]
[387133213,1758588688217,-345.84,0.00021093,2]
[387133214,1758588688226,-278.92674218,0.00021093,2]
[387133215,1758588688236,-400.0,0.00021093,2]
[387133216,1758588688245,-400.0,0.00021093,2]
[387133217,1758588688254,-400.0,0.00021093,2]
[387133218,1758588688264,-400.0,0.00021093,2]
[387133219,1758588688273,-400.0,0.00021093,2]
[387133220,1758588688282,-400.0,0.00021093,2]
[387133221,1758588688291,-400.0,0.00021093,2]
[387133222,1758588688300,-396.5,0.00021093,2]
[387133223,1758588688309,-400.0,0.00021093,2]
[387133224,1758588688318,-400.0,0.00021093,2]
[387133225,1758588688327,-400.0,0.00021093,2]
[387133226,1758588688336,-400.0,0.00021093,2]
[387133227,1758588688345,-400.0,0.00021093,2]
[387133228,1758588688354,-400.0,0.00021093,2]
[387133229,1758588688363,-400.0,0.00021093,2]
[387133230,1758588688372,-729.73,0.00021093,2]
[387133231,1758588688381,-518.68972271,0.00021093,2]
[387133232,1758588688391,-400.0,0.00021093,2]
[387133233,1758588688400,-400.0,0.00021093,2]
[387133234,1758588688409,-400.0,0.00021093,2]
[387133235,1758588688419,-400.0,0.00021093,2]
[387133236,1758588688429,-1262.42,0.00021093,2]
[387133237,1758588688439,-400.0,0.00021093,2]
[387133238,1758588688450,-400.0,0.00021093,2]
[387133239,1758588688460,-400.0,0.00021093,2]
[387133240,1758588688470,-400.0,0.00021093,2]
[387133241,1758588688480,-400.0,0.00021093,2]
[387133242,1758588688489,-400.0,0.00021093,2]
[387133243,1758588688497,-400.0,0.00021093,2]
[387133244,1758588688507,-402.51,0.00021093,2]
[387133245,1758588688516,-400.0,0.00021093,2]
[387133246,1758588688525,-400.0,0.00021093,2]
[387133247,1758588688534,-796.01,0.00021093,2]
[387133248,1758588688544,-400.0,0.00021093,2]
[387133249,1758588688553,-400.0,0.00021093,2]
[387133250,1758588688563,-400.0,0.00021093,2]
[387133251,1758588688571,-431.35,0.00021093,2]
[387133252,1758588688580,-2335.81,0.00021093,2]
[387133253,1758588688591,-400.0,0.00021093,2]
[387133254,1758588688602,-1029.46,0.00021093,2]
[387133255,1758588688611,-400.0,0.00021093,2]
[387133256,1758588688621,-465.65,0.00021093,2]
[387133257,1758588688630,-400.0,0.00021093,2]
[387133258,1758588688640,-400.0,0.00021093,2]
[387133259,1758588688649,-400.0,0.00021093,2]
[387133260,1758588688659,-194.25,0.00021093,2]
[387133261,1758588688669,-400.0,0.00021093,2]
[387133262,1758588688678,-400.0,0.00021093,2]
[387133263,1758588688687,-400.0,0.00021093,2]
[387133264,1758588688696,-1832.67,0.00021093,2]
[387133265,1758588688705,-400.0,0.00021093,2]
[387133266,1758588688714,-1616.25,0.00021093,2]
[387133267,1758588688723,-400.0,0.00021093,2]
[387133268,1758588688733,-367.88,0.00021093,2]
[387133269,1758588688742,-400.0,0.00021093,2]
[387133270,1758588688751,-400.0,0.00021093,2]
[387133271,1758588688761,-836.01,0.00021093,2]
[387133272,1758588688770,-400.0,0.00021093,2]
[387133273,1758588688779,-400.0,0.00021093,2]
[387133274,1758588688788,-400.0,0.00021093,2]
[387133275,1758588688797,-287.06,0.00021093,2]
[387133276,1758588688806,-400.0,0.00021093,2]
[387133277,1758588688816,-400.0,0.00021093,2]
[387133278,1758588688824,-1061.09,0.00021093,2]
[387133279,1758588688833,-400.0,0.00021093,2]
[387133280,1758588688842,-522.0,0.00021093,2]
[387133281,1758588688851,-400.0,0.00021093,2]
[387133282,1758588688860,-400.0,0.00021093,2]
[387133283,1758588688869,-400.0,0.00021093,2]
[387133284,1758588688878,-324.42,0.00021093,2]
[387133285,1758588688887,-400.0,0.00021093,2]
[387133286,1758588688898,-400.0,0.00021093,2]
[387133287,1758588688907,-400.0,0.00021093,2]
[387133288,1758588688916,-400.0,0.00021093,2]
[387133289,1758588688925,-500.0,0.00021093,2]
[387133290,1758588688934,-400.0,0.00021093,2]
[387133291,1758588688943,-400.0,0.00021093,2]
[387133292,1758588688952,-400.0,0.00021093,2]
[387133293,1758588688961,-400.0,0.00021093,2]
[387133294,1758588688970,-400.0,0.00021093,2]
[387133295,1758588688980,-3384.62,0.00021093,2]
[387133296,1758588688989,-400.0,0.00021093,2]
[387133297,1758588688998,-480.92,0.00021093,2]
[387133298,1758588689007,-400.0,0.00021093,2]
[387133299,1758588689016,-527.82,0.00021093,2]
[387133300,1758588689025,-400.0,0.00021093,2]
[387133301,1758588689034,-400.0,0.00021093,2]
[387133302,1758588689043,-400.0,0.00021093,2]
[387133303,1758588689052,-2060.76,0.00021093,2]
[387133304,1758588689060,-151.98166156,0.00021093,2]
[387133305,1758588689070,-530.11,0.00021093,2]
[387133306,1758588689078,-530.0,0.00021093,2]
[387133307,1758588689088,-922.13,0.00021093,2]
[387133308,1758588689099,-400.0,0.00021093,2]
[387133309,1758588689108,-691.38,0.00021093,2]
[387133310,1758588689118,-400.0,0.00021093,2]
[387133311,1758588689127,-754.65,0.00021093,2]
[387133312,1758588689137,-400.0,0.00021093,2]
[387133313,1758588689148,-400.0,0.00021093,2]
[387133314,1758588689157,-400.0,0.00021093,2]
[387133315,1758588689167,-400.0,0.00021093,2]
[387133316,1758588689176,-400.0,0.00021093,2]
[387133317,1758588689185,-508.94,0.00021093,2]
[387133318,1758588689194,-400.0,0.00021093,2]
[387133319,1758588689203,-1169.65,0.00021093,2]
[387133320,1758588689213,-400.0,0.00021093,2]
[387133321,1758588689222,-1903.352168,0.00021093,2]
[387133322,1758588689231,-202.14,0.00021093,2]
[387133323,1758588689239,-5823.65319056,0.00021094,2]
[387133324,1758588689248,-400.0,0.00021094,2]
[387133325,1758588689257,-400.0,0.00021094,2]
[387133326,1758588689266,-400.0,0.00021094,2]
[387133327,1758588689275,-400.0,0.00021094,2]
[387133328,1758588689284,-400.0,0.00021094,2]
[387133329,1758588689293,-400.0,0.00021094,2]
[387133330,1758588689302,-400.0,0.00021094,2]
[387133331,1758588689311,-412.97784829,0.00021094,2]
[387133332,1758588689320,-435.25487195,0.00021094,2]
[387133333,1758588689330,-400.0,0.00021094,2]
[387133334,1758588689339,-400.0,0.00021094,2]
[387133335,1758588689348,-400.0,0.00021094,2]
[387133336,1758588689357,-400.0,0.00021094,2]
[387133337,1758588689365,-400.0,0.00021094,2]
[387133338,1758588689374,-400.0,0.00021094,2]
[387133339,1758588689383,-400.0,0.00021094,2]
[387133340,1758588689391,-400.0,0.00021094,2]
[387133341,1758588689400,-164.43,0.00021094,2]
[387133342,1758588689409,-400.0,0.00021094,2]
[387133343,1758588689418,-400.0,0.00021094,2]
[387133344,1758588689427,-400.0,0.00021094,2]
[387133345,1758588689436,-400.0,0.00021094,2]
[387133346,1758588689445,-400.0,0.00021094,2]
[387133347,1758588689455,-400.0,0.00021094,2]
[387133348,1758588689465,-192.64458708,0.00021094,2]
[387133349,1758588689475,-400.0,0.00021094,2]
[387133350,1758588689485,-400.0,0.00021094,2]
[387133351,1758588689495,-400.0,0.00021094,2]
[387133352,1758588689504,-400.0,0.00021094,2]
[387133353,1758588689514,-674.13,0.00021094,2]
[387133354,1758588689524,-400.0,0.00021094,2]
[387133355,1758588689533,-490.65,0.00021094,2]
[387133356,1758588689544,-500.0,0.00021094,2]
[387133357,1758588689555,-400.0,0.00021094,2]
[387133358,1758588689565,-400.0,0.00021094,2]
[387133359,1758588689575,-455.83583617,0.00021094,2]
[387133360,1758588689585,-410.63,0.00021094,2]
[387133361,1758588689595,-400.0,0.00021094,2]
[387133362,1758588689604,-750.91,0.00021094,2]
[387133363,1758588689613,-400.0,0.00021094,2]
[387133364,1758588689623,-400.0,0.00021094,2]
[387133365,1758588689632,-554.46,0.00021094,2]
[387133366,1758588689641,-544.47,0.00021094,2]
[387133367,1758588689651,-400.0,0.00021094,2]
[387133368,1758588689660,-859.26,0.00021094,2]
[387133369,1758588689669,-427.62,0.00021094,2]
[387133370,1758588689678,-400.0,0.00021094,2]
[387133371,1758588689687,-400.0,0.00021094,2]
[387133372,1758588689696,-400.0,0.00021094,2]
[387133373,1758588689705,-400.0,0.00021094,2]
[387133374,1758588689714,-660.35,0.00021094,2]
[387133375,1758588689723,-410.37,0.00021094,2]
[387133376,1758588689734,-400.0,0.00021094,2]
[387133377,1758588689744,-400.0,0.00021094,2]
[387133378,1758588689754,-1016.77,0.00021094,2]
[387133379,1758588689763,-400.0,0.00021094,2]
[387133380,1758588689772,-400.0,0.00021094,2]
[387133381,1758588689781,-484.13,0.00021094,2]
[387133382,1758588689790,-682.51,0.00021094,2]
[387133383,1758588689800,-400.0,0.00021094,2]
[387133384,1758588689809,-400.0,0.00021094,2]
[387133385,1758588689819,-588.84,0.00021094,2]
[387133386,1758588689828,-527.41,0.00021094,2]
[387133387,1758588689837,-400.0,0.00021094,2]
[387133388,1758588689846,-400.0,0.00021094,2]
[387133389,1758588689855,-400.0,0.00021094,2]
[387133390,1758588689863,-769.14,0.00021094,2]
[387133391,1758588689873,-400.0,0.00021094,2]
[387133392,1758588689887,-400.0,0.00021094,2]
[387133393,1758588689902,-400.0,0.00021094,2]
[387133394,1758588689911,-400.0,0.00021094,2]
[387133395,1758588689920,-450.01,0.00021094,2]
[387133396,1758588689929,-377.73,0.00021094,2]
[387133397,1758588689938,-400.0,0.00021094,2]
[387133398,1758588689947,-400.0,0.00021094,2]
[387133399,1758588689956,-400.0,0.00021094,2]
[387133400,1758588689965,-495.05,0.00021094,2]
[387133401,1758588689976,-400.0,0.00021094,2]
[387133402,1758588689985,-593.36,0.00021094,2]
[387133403,1758588689995,-445.15,0.00021094,2]
[387133404,1758588690005,-400.0,0.00021094,2]
[387133405,1758588690015,-769.03,0.00021094,2]
[387133406,1758588690026,-537.23,0.00021094,2]
[387133407,1758588690037,-548.16,0.00021094,2]
[387133408,1758588690047,-400.0,0.00021094,2]
[387133409,1758588690057,-400.0,0.00021094,2]
[387133410,1758588690067,-400.0,0.00021094,2]
[387133411,1758588690077,-465.48,0.00021094,2]
[387133412,1758588690089,-400.0,0.00021094,2]
[387133413,1758588690099,-400.0,0.00021094,2]
[387133414,1758588690111,-1440.81,0.00021094,2]
[387133415,1758588690122,-400.0,0.00021094,2]
[387133416,1758588690132,-2249.616654,0.00021094,2]
[387133417,1758588690144,-187.1,0.00021094,2]
[387133418,1758588690153,-400.0,0.00021094,2]
[387133419,1758588690163,-400.0,0.00021094,2]
[387133420,1758588690172,-400.0,0.00021094,2]
[387133421,1758588690181,-501.01,0.00021094,2]
[387133422,1758588690190,-493.6,0.00021094,2]
[387133423,1758588690199,-400.0,0.00021094,2]
[387133424,1758588690208,-208.76,0.00021094,2]
[387133425,1758588690218,-969.65,0.00021094,2]
[387133426,1758588690227,-433.42,0.00021094,2]
[387133427,1758588690236,-577.66,0.00021094,2]
[387133428,1758588690245,-400.0,0.00021094,2]
[387133429,1758588690254,-400.0,0.00021094,2]
[387133430,1758588690268,-803.42,0.00021094,2]
[387133431,1758588690277,-400.0,0.00021094,2]
[387133432,1758588690286,-400.0,0.00021094,2]
[387133433,1758588690295,-651.06,0.00021094,2]
[387133434,1758588690304,-400.0,0.00021094,2]
[387133435,1758588690313,-414.87,0.00021094,2]
[387133436,1758588690322,-400.0,0.00021094,2]
[387133437,1758588690333,-602.08,0.00021094,2]
[387133438,1758588690342,-400.0,0.00021094,2]
[387133439,1758588690351,-400.0,0.00021094,2]
[387133440,1758588690360,-400.0,0.00021094,2]
[387133441,1758588690369,-697.68,0.00021094,2]
[387133442,1758588690379,-1169.47,0.00021094,2]
[387133443,1758588690389,-400.0,0.00021094,2]
[387133444,1758588690398,-400.0,0.00021094,2]
[387133445,1758588690407,-440.26,0.00021094,2]
[387133446,1758588690417,-514.36,0.00021094,2]
[387133447,1758588690427,-593.88,0.00021094,2]
[387133448,1758588690436,-1060.97,0.00021094,2]
[387133449,1758588690446,-743.55,0.00021094,2]
[387133450,1758588690455,-620.51,0.00021094,2]
[387133451,1758588690466,-400.0,0.00021094,2]
[387133452,1758588690475,-400.0,0.00021094,2]
[387133453,1758588690486,-695.32,0.00021094,2]
[387133454,1758588690498,-447.81,0.00021094,2]
[387133455,1758588690507,-400.0,0.00021094,2]
[387133456,1758588690516,-909.99,0.00021094,2]
[387133457,1758588690525,-400.0,0.00021094,2]
[387133458,1758588690534,-400.0,0.00021094,2]
[387133459,1758588690543,-609.54,0.00021094,2]
[387133460,1758588690553,-400.0,0.00021094,2]
[387133461,1758588690562,-503.16,0.00021094,2]
[387133462,1758588690573,-652.42,0.00021094,2]
[387133463,1758588690581,-1926.15,0.00021094,2]
[387133464,1758588690592,-400.0,0.00021094,2]
[387133465,1758588690602,-808.98,0.00021094,2]
[387133466,1758588690611,-997.93,0.00021094,2]
[387133467,1758588690623,-2763.9,0.00021094,2]
[387133468,1758588690633,-822.69,0.00021094,2]
[387133469,1758588690643,-276.54,0.00021094,2]
[387133470,1758588690653,-1231.62,0.00021094,2]
[387133471,1758588690662,-435.88,0.00021094,2]
[387133472,1758588690672,-400.0,0.00021094,2]
[387133473,1758588690682,-1881.3,0.00021094,2]
[387133474,1758588690691,-400.0,0.00021094,2]
[387133475,1758588690701,-400.0,0.00021094,2]
[387133476,1758588690710,-1082.02,0.00021094,2]
[387133477,1758588690720,-703.54,0.00021094,2]
[387133478,1758588690729,-471.61,0.00021094,2]
[387133479,1758588690738,-698.95,0.00021094,2]
[387133480,1758588690747,-422.43,0.00021094,2]
[387133481,1758588690756,-665.52,0.00021094,2]
[387133482,1758588690767,-1517.07,0.00021094,2]
[387133483,1758588690776,-1290.57,0.00021094,2]
[387133484,1758588690786,-599.8,0.00021094,2]
[387133485,1758588690795,-864.51,0.00021094,2]
[387133486,1758588690805,-165.39418794,0.00021094,2]
[387133487,1758588690815,-700.22,0.00021094,2]
[387133488,1758588690824,-578.19,0.00021094,2]
[387133489,1758588690833,-400.0,0.00021094,2]
[387133490,1758588690842,-400.0,0.00021094,2]
[387133491,1758588690852,-1270.12,0.00021094,2]
[387133492,1758588690861,-529.42,0.00021094,2]
[387133493,1758588690871,-1179.29,0.00021094,2]
[387133494,1758588690880,-790.42,0.00021094,2]
[387133495,1758588690890,-546.07,0.00021094,2]
[387133496,1758588690900,-796.17,0.00021094,2]
[387133497,1758588690910,-1797.38,0.00021094,2]
[387133498,1758588690919,-1067.68,0.00021094,2]
[387133499,1758588690928,-363.3,0.00021094,2]
[387133500,1758588690938,-685.94,0.00021094,2]
[387133501,1758588690948,-400.0,0.00021094,2]
[387133502,1758588690958,-400.0,0.00021094,2]
[387133503,1758588690969,-400.0,0.00021094,2]
[387133504,1758588690979,-4410.79,0.00021094,2]
[387133505,1758588690992,-400.0,0.00021094,2]
[387133506,1758588691003,-400.0,0.00021094,2]
[387133507,1758588691012,-635.32,0.00021094,2]
[387133508,1758588691022,-400.0,0.00021094,2]
[387133509,1758588691033,-825.39,0.00021094,2]
[387133510,1758588691044,-1159.17,0.00021094,2]
[387133511,1758588691055,-3621.17,0.00021094,2]
[387133512,1758588691065,-536.01,0.00021094,2]
[387133513,1758588691075,-1555.92,0.00021094,2]
[387133514,1758588691085,-685.82,0.00021094,2]
[387133515,1758588691100,-400.0,0.00021094,2]
[387133516,1758588691109,-400.0,0.00021094,2]
[387133517,1758588691232,-1688.59,0.00021094,2]
[387133518,1758588691243,-533.54,0.00021094,2]
[387133519,1758588691255,-3199.7,0.00021094,2]
[387133520,1758588691265,-400.0,0.00021094,2]
[387133521,1758588691275,-5083.46,0.00021094,2]
[387133522,1758588691288,-532.7,0.00021094,2]
[387133523,1758588691299,-726.03,0.00021094,2]
[387133524,1758588691311,-1692.11,0.00021094,2]
[387133525,1758588691320,-633.11,0.00021094,2]
[387133526,1758588691329,-411.61,0.00021094,2]
[387133527,1758588691339,-400.0,0.00021094,2]
[387133528,1758588691348,-648.3,0.00021094,2]
[387133529,1758588691357,-857.03,0.00021094,2]